bitfinex/quotes_SOLUSD_20240607
["timestamp","ask_amount","ask_price","bid_price","bid_amount"]
[1717752858389,9.4617,171.96,171.89,7.31]
[1717752858595,2.1516,171.97,171.91,7.31]
[1717752858795,2.1516,171.97,171.92,7.31]
[1717752859810,2.1516,171.97,171.85,154.92]
[1717752860123,2.1516,171.96,171.92,7.31]
[1717752860635,2.1516,171.96,171.9,7.31]
[1717752861487,9.4616,171.97,171.9,7.31]
[1717752862424,2.1516,171.96,171.9,7.31]
[1717752862628,2.1516,171.96,171.86,99.92]
[1717752862923,9.4616,171.97,171.9,7.31]
[1717752863588,2.1516,171.96,171.9,7.31]
[1717752864018,2.1516,171.96,171.91,7.31]
[1717752864222,2.1516,171.96,171.86,99.92]
[1717752864521,9.4616,171.97,171.91,7.31]
[1717752865518,2.1516,171.96,171.91,7.31]
[1717752866215,2.1516,171.96,171.86,99.92]
[1717752866425,2.1516,171.96,171.9,7.31]
[1717752866627,2.1518,171.95,171.86,20.0]
[1717752866921,2.1519,171.94,171.88,7.31]
[1717752867130,2.1519,171.94,171.84,20.0]
[1717752867318,2.1519,171.94,171.88,7.31]
[1717752870521,2.152,171.93,171.85,5.817]
[1717752870726,9.462,171.93,171.87,7.31]
[1717752871507,9.462,171.93,171.85,5.817]
[1717752871906,2.1521,171.92,171.86,7.31]
[1717752873314,9.4621,171.92,171.85,7.31]
[1717752873913,9.4621,171.92,171.81,35.867]
[1717752873914,9.4621,171.92,171.81,6.627]
[1717752874114,2.1523,171.91,171.85,7.31]
[1717752874812,9.4623,171.91,171.85,7.31]
[1717752875018,7.31,171.91,171.85,7.31]
[1717752875553,7.31,171.91,171.81,6.627]
[1717752875751,7.31,171.91,171.85,7.31]
[1717752876946,9.4622,171.92,171.85,7.31]
[1717752877249,2.1522,171.92,171.82,20.0]
[1717752877429,9.4622,171.92,171.86,7.31]
[1717752881344,15.6732,171.95,171.82,54.91]
[1717752881530,2.1521,171.93,171.88,7.31]
[1717752882621,2.1521,171.93,171.82,54.91]
[1717752882839,2.1521,171.93,171.88,7.31]
[1717752883519,2.1521,171.93,171.82,54.91]
[1717752883833,2.1521,171.93,171.88,7.31]
[1717752884523,2.1521,171.92,171.82,54.91]
[1717752884724,2.1521,171.92,171.88,7.31]
[1717752886440,2.1521,171.92,171.87,7.31]
[1717752891226,2.1521,171.93,171.87,7.31]
[1717752891538,2.1521,171.92,171.87,7.31]
[1717752894855,2.1521,171.92,171.82,54.91]
[1717752895066,2.1521,171.92,171.87,7.31]
[1717752910163,2.1521,171.92,171.86,7.31]
[1717752917378,2.1521,171.92,171.82,54.91]
[1717752917557,2.1521,171.92,171.86,7.31]
[1717752917879,9.4621,171.92,171.85,7.31]
[1717752919284,9.4621,171.92,171.82,54.91]
[1717752919580,9.4621,171.92,171.85,7.31]
[1717752920354,7.31,171.91,171.82,54.91]
[1717752920759,7.31,171.91,171.85,7.31]
[1717752921589,9.4623,171.91,171.85,7.31]
[1717752921758,9.4623,171.91,171.84,7.31]
[1717752923667,9.4623,171.91,171.85,7.31]
[1717752928080,9.4623,171.91,171.82,25.817]
[1717752928288,9.4623,171.91,171.85,7.31]
[1717752929174,7.31,171.91,171.82,25.817]
[1717752929360,2.1524,171.9,171.85,7.31]
[1717752929566,2.1524,171.9,171.84,7.31]
[1717752931592,2.1524,171.9,171.82,25.817]
[1717752932093,9.4624,171.9,171.83,7.31]
[1717752933074,9.4624,171.9,171.82,25.817]
[1717752933394,45.0,171.89,171.83,7.31]
[1717752933588,52.31,171.89,171.83,7.31]
[1717752938492,45.0,171.89,171.84,7.31]
[1717752938798,2.1523,171.91,171.85,7.31]
[1717752939098,2.1523,171.91,171.82,20.0]
[1717752939099,2.1521,171.92,171.86,7.31]
[1717752939304,9.4621,171.93,171.82,25.817]
[1717752939596,35.0395,171.95,171.86,7.31]
[1717752939897,9.4621,171.93,171.86,7.31]
[1717752940083,2.1521,171.92,171.82,25.817]
[1717752940288,4.3038,171.94,171.85,7.31]
[1717752940289,9.4622,171.91,171.85,7.31]
[1717752940484,2.1522,171.91,171.85,7.31]
[1717752940679,54.4622,171.91,171.85,7.31]
[1717752940875,2.1524,171.9,171.85,7.31]
[1717752941093,9.4624,171.9,171.84,7.31]
[1717752941696,7.31,171.9,171.82,25.817]
[1717752941898,7.31,171.9,171.84,7.31]
[1717752942699,54.4623,171.91,171.84,7.31]
[1717752943902,47.1523,171.91,171.82,25.817]
[1717752944072,2.1523,171.91,171.85,7.31]
[1717752944279,9.4623,171.91,171.85,7.31]
[1717752944793,9.4627,171.88,171.82,13.127]
[1717752944979,9.4627,171.88,171.78,34.91]
[1717752945184,7.31,171.88,171.82,7.31]
[1717752945594,9.4626,171.88,171.82,7.31]
[1717752946584,9.4626,171.88,171.81,7.31]
[1717752946799,7.31,171.88,171.81,7.31]
[1717752951587,7.31,171.87,171.81,7.31]
[1717752952411,45.0,171.92,171.77,6.663]
[1717752952610,7.31,171.85,171.79,7.31]
[1717752957796,7.31,171.85,171.77,6.663]
[1717752957997,7.31,171.85,171.79,7.31]
[1717752960732,7.31,171.85,171.77,6.663]
[1717752960917,7.31,171.85,171.75,17.3681019]
[1717752960918,2.153,171.85,171.75,17.3681019]
[1717752961108,7.31,171.84,171.78,7.31]
[1717752963130,7.31,171.84,171.75,0.9849019]
[1717752963293,9.4632,171.84,171.77,7.31]
[1717752963500,9.4632,171.84,171.75,0.9849019]
[1717752963709,9.4632,171.84,171.77,7.31]
[1717752965417,7.31,171.83,171.75,0.9849019]
[1717752965746,2.1533,171.83,171.77,7.31]
[1717752965929,9.4632,171.84,171.77,7.31]
[1717752966520,9.4632,171.84,171.75,0.9849019]
[1717752966734,9.4632,171.84,171.77,7.31]
[1717752967103,9.4632,171.84,171.78,7.31]
[1717752967631,9.4632,171.84,171.75,0.9849019]
[1717752967921,2.1532,171.84,171.78,7.31]
[1717752970122,2.1533,171.83,171.78,7.31]
[1717752971028,2.1532,171.84,171.78,7.31]
[1717752971216,9.4632,171.84,171.78,7.31]
[1717752971531,2.1532,171.84,171.79,7.31]
[1717752971723,2.1532,171.84,171.78,7.31]
[1717752972325,12.9171,171.87,171.79,7.31]
[1717752972529,2.1531,171.85,171.8,7.31]
[1717752974232,2.1531,171.84,171.8,7.31]
[1717752977635,2.1531,171.84,171.79,7.31]
[1717752978138,2.1532,171.83,171.79,7.31]
[1717752978938,2.1532,171.84,171.79,7.31]
[1717752979714,2.1532,171.84,171.75,0.9849019]
[1717752980031,2.1532,171.84,171.79,7.31]
[1717752980435,2.1533,171.83,171.75,0.9849019]
[1717752980649,2.1533,171.83,171.79,7.31]
[1717752982141,2.1531,171.84,171.79,7.31]
[1717752984845,2.1531,171.84,171.75,0.9849019]
[1717752985049,2.1531,171.84,171.79,7.31]
[1717752985624,2.1531,171.84,171.78,7.31]
[1717752986544,2.1531,171.84,171.75,0.9849019]
[1717752986745,2.1532,171.83,171.78,7.31]
[1717752987746,2.1532,171.84,171.78,7.31]
[1717752989727,2.1532,171.84,171.75,0.9849019]
[1717752989929,2.1532,171.84,171.78,7.31]
[1717752990862,2.1532,171.84,171.75,0.9849019]
[1717752991033,2.1532,171.83,171.75,0.9849019]
[1717752991234,2.1532,171.83,171.77,7.31]
[1717752991847,9.4632,171.84,171.77,7.31]
[1717752992239,7.31,171.83,171.76,7.31]
[1717752992554,2.1532,171.84,171.75,0.9849019]
[1717752995762,2.1533,171.83,171.75,0.9849019]
[1717752996360,2.1532,171.84,171.75,0.9849019]
[1717752997772,47.1531,171.85,171.75,0.9849019]
[1717752998765,2.1531,171.84,171.75,0.9849019]
[1717753002269,45.0,171.85,171.75,0.9849019]
[1717753002474,2.1534,171.82,171.75,0.9849019]
[1717753003341,2.1533,171.83,171.75,0.9849019]
[1717753007660,2.1532,171.84,171.75,0.9849019]
[1717753008367,49.306,171.85,171.75,0.9849019]
[1717753008368,2.1533,171.83,171.75,0.9849019]
[1717753008960,2.1532,171.84,171.75,0.9849019]
[1717753011276,2.1532,171.83,171.75,0.9849019]
[1717753012472,2.1532,171.84,171.75,0.9849019]
[1717753013561,2.1533,171.83,171.75,0.9849019]
[1717753014275,2.1534,171.82,171.75,0.9849019]
[1717753014575,2.1533,171.83,171.75,0.9849019]
[1717753015149,2.1532,171.84,171.75,0.9849019]
[1717753016865,2.1533,171.83,171.75,0.9849019]
[1717753017677,19.3767,171.86,171.75,0.9849019]
[1717753017854,4.306,171.85,171.75,0.9849019]
[1717753018167,2.1532,171.83,171.75,0.9849019]
[1717753018368,2.1532,171.84,171.75,0.9849019]
[1717753018678,2.1533,171.83,171.75,0.9849019]
[1717753018881,2.1532,171.84,171.75,0.9849019]
[1717753021055,4.3058,171.86,171.75,0.9849019]
[1717753021256,2.1531,171.85,171.75,16.3417019]
[1717753021468,2.1531,171.85,171.76,6.2481]
[1717753023662,2.1531,171.84,171.76,6.2481]
[1717753026092,2.1532,171.84,171.76,6.2481]
[1717753027774,2.1531,171.85,171.76,6.2481]
[1717753030291,2.1531,171.84,171.76,6.2481]
[1717753033096,2.1531,171.85,171.76,6.2481]
[1717753033675,2.153,171.85,171.77,51.4925]
[1717753033996,2.1528,171.87,171.77,51.4925]
[1717753034290,2.1528,171.87,171.78,22.7389]
[1717753034695,2.1529,171.86,171.78,22.7389]
[1717753038800,2.153,171.85,171.78,22.7389]
[1717753039374,6.4578,171.89,171.78,22.7389]
[1717753039593,2.1528,171.87,171.78,22.7389]
[1717753040404,2.1529,171.86,171.78,22.7389]
[1717753043002,2.1528,171.87,171.78,22.7389]
[1717753044401,16.84146156,171.91,171.79,6.5812]
[1717753044701,12.9124,171.93,171.82,6.4053]
[1717753044905,2.1523,171.91,171.82,6.4053]
[1717753045283,16.83611955,171.95,171.82,41.3153]
[1717753045495,2.1522,171.92,171.82,41.3153]
[1717753045994,2.1522,171.91,171.82,41.3153]
[1717753047299,2.1522,171.92,171.82,41.3153]
[1717753048210,2.152,171.93,171.83,20.0]
[1717753049291,2.1522,171.92,171.83,20.0]
[1717753050586,2.1523,171.91,171.83,20.0]
[1717753052395,2.1522,171.91,171.83,20.0]
[1717753054205,2.1522,171.91,171.82,6.4053]
[1717753054396,2.1524,171.9,171.82,6.4053]
[1717753058698,2.1525,171.89,171.82,6.4053]
[1717753059018,47.1522,171.91,171.82,6.4053]
[1717753059513,2.1522,171.91,171.82,6.4053]
[1717753060514,2.1524,171.9,171.82,6.4053]
[1717753061090,2.1523,171.91,171.82,6.4053]
[1717753061812,2.1524,171.9,171.82,6.4053]
[1717753081497,2.1525,171.89,171.82,6.4053]
[1717753083731,2.1524,171.9,171.82,6.4053]
[1717753084831,2.1525,171.89,171.82,6.4053]
[1717753085424,2.1524,171.9,171.82,6.4053]
[1717753086915,2.1525,171.89,171.82,6.4053]
[1717753087303,2.1524,171.9,171.82,6.4053]
[1717753087732,2.1525,171.89,171.82,6.4053]
[1717753096319,6.4576,171.89,171.82,6.4053]
[1717753096625,2.1527,171.88,171.82,6.4053]
[1717753096821,2.1527,171.87,171.78,34.91]
[1717753097031,2.1527,171.87,171.79,86.117]
[1717753097249,2.1527,171.88,171.79,86.117]
[1717753097825,2.1528,171.87,171.79,41.117]
[1717753098016,45.0,171.92,171.79,21.117]
[1717753098017,2.1529,171.86,171.79,21.117]
[1717753102639,2.1528,171.87,171.79,21.117]
[1717753104245,2.1527,171.88,171.79,21.117]
[1717753104828,2.1528,171.87,171.79,21.117]
[1717753110550,4.3051,171.89,171.79,21.117]
[1717753111126,2.1528,171.87,171.79,21.117]
[1717753112551,2.1529,171.86,171.79,21.117]
[1717753113952,2.1528,171.87,171.79,21.117]
[1717753114648,2.1527,171.88,171.79,21.117]
[1717753114837,2.1527,171.88,171.8,6.4901]
[1717753118937,4.3048,171.9,171.8,6.4901]
[1717753118938,2.1525,171.89,171.8,6.4901]
[1717753119838,2.1526,171.88,171.8,6.4901]
[1717753126761,2.1525,171.89,171.81,22.2979]
[1717753127651,2.1526,171.88,171.81,22.2979]
[1717753140567,2.1527,171.87,171.81,22.2979]
[1717753140746,2.1527,171.88,171.81,22.2979]
[1717753143646,2.1526,171.89,171.81,22.2979]
[1717753155898,2.1525,171.89,171.81,22.2979]
[1717753156964,2.1526,171.88,171.81,22.2979]
[1717753160566,2.1527,171.88,171.81,22.2979]
[1717753161262,2.1526,171.89,171.81,22.2979]
[1717753163983,2.1524,171.9,171.81,22.2979]
[1717753164185,2.1524,171.9,171.82,6.1907]
[1717753165680,2.1523,171.91,171.82,6.1907]
[1717753166491,2.1524,171.9,171.82,6.1907]
[1717753169961,2.1523,171.91,171.82,6.1907]
[1717753174282,2.1524,171.9,171.82,6.1907]
[1717753174679,2.1523,171.91,171.84,6.314]
[1717753175924,2.1522,171.92,171.84,6.314]
[1717753184801,2.1524,171.9,171.84,6.314]
[1717753190920,2.1523,171.91,171.84,6.314]
[1717753191921,2.1524,171.9,171.84,6.314]
[1717753192416,2.1523,171.91,171.84,6.314]
[1717753196703,2.1524,171.9,171.84,6.314]
[1717753197103,2.1522,171.92,171.84,6.314]
[1717753197429,2.1521,171.93,171.84,6.314]
[1717753197725,2.1521,171.92,171.84,6.314]
[1717753199310,2.1521,171.93,171.84,6.314]
[1717753200427,2.1521,171.92,171.84,6.314]
[1717753200729,2.1521,171.93,171.84,6.314]
[1717753202208,2.1519,171.94,171.86,6.4512]
[1717753207314,2.1518,171.95,171.86,6.4512]
[1717753207517,2.1519,171.94,171.86,6.4512]
[1717753210611,2.1519,171.94,171.87,22.8201]
[1717753214035,2.1518,171.95,171.87,22.8201]
[1717753215042,2.1516,171.97,171.87,22.8201]
[1717753215246,2.1517,171.96,171.87,22.8201]
[1717753216019,2.1517,171.96,171.88,6.0793]
[1717753219219,2.1517,171.96,171.92,7.31]
[1717753219425,2.1517,171.96,171.93,6.5332]
[1717753221129,2.1517,171.96,171.92,23.4183]
[1717753221463,2.1517,171.96,171.94,6.5332]
[1717753221746,2.1516,171.97,171.94,6.5332]
[1717753224244,2.1516,171.96,171.94,6.5332]
[1717753228675,2.1516,171.97,171.94,6.5332]
[1717753229438,2.1516,171.96,171.94,6.5332]
[1717753230659,2.1516,171.97,171.94,6.5332]
[1717753231551,2.1517,171.96,171.94,6.5332]
[1717753233154,2.1517,171.95,171.94,6.5332]
[1717753233463,2.1517,171.96,171.9,7.31]
[1717753234462,9.4616,171.97,171.9,7.31]
[1717753234644,2.1516,171.96,171.9,7.31]
[1717753234957,2.1516,171.96,171.92,6.09]
[1717753235955,2.1518,171.95,171.88,15.5441]
[1717753236140,7.31,171.95,171.88,22.0388]
[1717753236440,9.4618,171.95,171.89,7.31]
[1717753237346,7.31,171.96,171.89,7.31]
[1717753237543,9.4617,171.96,171.89,7.31]
[1717753241463,2.1517,171.95,171.89,7.31]
[1717753242749,2.1517,171.96,171.89,7.31]
[1717753243058,9.4617,171.96,171.89,7.31]
[1717753243650,2.1517,171.96,171.89,7.31]
[1717753243848,9.4617,171.96,171.9,7.31]
[1717753245455,2.1523,171.91,171.82,6.1912]
[1717753245671,9.4622,171.92,171.85,7.31]
[1717753245960,2.1522,171.91,171.85,7.31]
[1717753246164,9.4622,171.91,171.85,7.31]
[1717753247069,2.1524,171.9,171.85,7.31]
[1717753247273,2.1524,171.9,171.82,6.1912]
[1717753247478,2.1524,171.9,171.84,7.31]
[1717753247779,9.4623,171.91,171.84,7.31]
[1717753250256,9.4623,171.91,171.83,45.0]
[1717753250257,2.1524,171.9,171.83,45.0]
[1717753250574,2.1524,171.9,171.84,7.31]
[1717753250774,9.4624,171.9,171.84,7.31]
[1717753252273,9.4624,171.9,171.83,45.0]
[1717753252478,9.4624,171.9,171.83,52.31]
[1717753253379,9.4624,171.9,171.84,7.31]
[1717753253670,2.1524,171.9,171.84,7.31]
[1717753253981,7.31,171.9,171.84,7.31]
[1717753256674,9.4623,171.91,171.85,7.31]
[1717753260374,2.1524,171.9,171.85,7.31]
[1717753260865,9.4624,171.9,171.83,45.0]
[1717753261067,9.4624,171.9,171.84,7.31]
[1717753261262,9.4624,171.9,171.83,45.0]
[1717753261586,2.1525,171.89,171.83,7.31]
[1717753262373,7.31,171.9,171.83,7.31]
[1717753262684,2.1525,171.89,171.83,7.31]
[1717753263184,9.4624,171.9,171.83,7.31]
[1717753263787,9.4624,171.9,171.84,7.31]
[1717753264567,2.1524,171.9,171.84,7.31]
[1717753266489,2.1524,171.9,171.86,7.31]
[1717753266790,2.1521,171.92,171.88,7.31]
[1717753266986,2.1521,171.93,171.88,7.31]
[1717753267195,4.3039,171.94,171.88,7.31]
[1717753267196,2.1521,171.92,171.88,7.31]
[1717753268769,2.1523,171.91,171.88,7.31]
[1717753268973,2.1523,171.91,171.87,7.31]
[1717753270464,2.1522,171.91,171.82,41.1112]
[1717753270670,2.1522,171.91,171.86,7.31]
[1717753270894,2.1524,171.9,171.83,45.0]
[1717753271276,2.1525,171.89,171.85,7.31]
[1717753271495,2.1524,171.9,171.85,7.31]
[1717753272072,2.1525,171.89,171.85,7.31]
[1717753272574,2.1525,171.89,171.83,45.0]
[1717753272887,2.1525,171.89,171.85,7.31]
[1717753273284,2.1524,171.9,171.85,7.31]
[1717753273699,9.4623,171.91,171.85,7.31]
[1717753273876,2.1523,171.91,171.85,7.31]
[1717753274502,2.1524,171.9,171.85,7.31]
[1717753274795,2.1523,171.91,171.83,45.0]
[1717753275581,2.1523,171.91,171.85,7.31]
[1717753275899,2.1524,171.9,171.83,45.0]
[1717753276298,2.1523,171.91,171.83,45.0]
[1717753276703,2.1523,171.91,171.87,7.31]
[1717753276876,2.1524,171.9,171.87,7.31]
[1717753278697,7.31,171.94,171.88,7.31]
[1717753278898,7.31,171.95,171.83,45.0]
[1717753279077,7.31,171.95,171.89,7.31]
[1717753279272,6.06971786,171.96,171.89,7.31]
[1717753279468,6.06971786,171.96,171.83,45.0]
[1717753279469,6.06971786,171.96,171.9,7.31]
[1717753279673,2.1521,171.93,171.89,7.31]
[1717753280280,2.1521,171.93,171.83,79.92]
[1717753280506,2.1521,171.93,171.89,7.31]
[1717753282898,2.1521,171.93,171.83,79.92]
[1717753283103,2.1521,171.93,171.89,7.31]
[1717753284200,2.1521,171.92,171.83,79.92]
[1717753284409,2.1521,171.92,171.89,7.31]
[1717753284700,2.1521,171.92,171.88,7.31]
[1717753288107,2.1521,171.92,171.87,7.31]
[1717753289506,2.1521,171.92,171.88,7.31]
[1717753296402,2.1521,171.92,171.87,7.31]
[1717753298111,2.1521,171.93,171.87,7.31]
[1717753300213,2.1521,171.93,171.88,7.31]
[1717753300414,2.1521,171.92,171.83,79.92]
[1717753300602,2.1521,171.92,171.88,7.31]
[1717753301205,18.98031786,171.96,171.83,79.92]
[1717753301411,2.152,171.93,171.9,7.31]
[1717753303319,2.152,171.93,171.89,7.31]
[1717753305003,2.152,171.93,171.83,79.92]
[1717753305202,2.152,171.93,171.88,7.31]
[1717753306609,9.4619,171.94,171.88,7.31]
[1717753307223,2.1519,171.94,171.88,7.31]
[1717753309528,2.152,171.93,171.88,7.31]
[1717753310528,2.152,171.93,171.87,7.31]
[1717753320226,2.152,171.93,171.84,20.0]
[1717753320434,2.152,171.93,171.87,7.31]
[1717753320612,2.152,171.93,171.88,7.31]
[1717753325455,9.462,171.93,171.84,20.0]
[1717753325634,9.462,171.93,171.85,45.0]
[1717753325963,9.462,171.93,171.87,7.31]
[1717753326458,2.152,171.93,171.87,7.31]
[1717753327358,9.4619,171.94,171.87,7.31]
[1717753327558,7.31,171.93,171.85,45.0]
[1717753327734,9.4621,171.93,171.85,52.31]
[1717753328132,9.4621,171.92,171.86,7.31]
[1717753328357,2.1521,171.92,171.86,7.31]
[1717753328570,2.1521,171.92,171.85,45.0]
[1717753328734,2.1521,171.93,171.86,7.31]
[1717753328936,9.4621,171.93,171.86,7.31]
[1717753331258,2.1521,171.93,171.87,7.31]
[1717753332251,2.1521,171.92,171.87,7.31]
[1717753335161,2.1521,171.93,171.87,7.31]
[1717753336851,2.1521,171.93,171.88,7.31]
[1717753338561,2.1521,171.93,171.89,7.31]
[1717753338750,2.1521,171.93,171.82,161.1112]
[1717753338946,2.1521,171.93,171.89,7.31]
[1717753344970,2.1521,171.92,171.89,7.31]
[1717753346368,2.1521,171.93,171.89,7.31]
[1717753350370,2.1521,171.93,171.83,95.2526]
[1717753350566,2.1521,171.93,171.88,7.31]
[1717753353563,2.1521,171.93,171.87,7.31]
[1717753354261,2.1521,171.93,171.88,7.31]
[1717753375798,2.1521,171.92,171.88,7.31]
[1717753376204,2.1521,171.93,171.88,7.31]
[1717753378807,2.1521,171.92,171.88,7.31]
[1717753380002,4.3038,171.94,171.88,7.31]
[1717753380184,2.1521,171.93,171.88,7.31]
[1717753381706,2.1521,171.93,171.86,7.31]
[1717753382007,2.1521,171.93,171.87,45.0]
[1717753388618,2.1521,171.92,171.87,45.0]
[1717753389212,2.1521,171.93,171.87,45.0]
[1717753392031,18.0689,171.95,171.87,45.0]
[1717753392495,2.1521,171.93,171.87,45.0]
[1717753396501,2.1521,171.92,171.87,45.0]
[1717753397731,2.1521,171.93,171.87,45.0]
[1717753400017,2.1521,171.93,171.87,52.31]
[1717753400735,2.1521,171.92,171.87,45.0]
[1717753401035,11.6138,171.94,171.87,45.0]
[1717753401233,2.152,171.93,171.87,45.0]
[1717753402639,2.1519,171.94,171.87,52.31]
[1717753402845,2.1519,171.94,171.88,7.31]
[1717753403332,2.1519,171.94,171.87,45.0]
[1717753403645,2.152,171.93,171.88,7.31]
[1717753404035,2.152,171.93,171.87,52.31]
[1717753404336,2.152,171.93,171.87,45.0]
[1717753404937,9.462,171.93,171.87,45.0]
[1717753412456,2.152,171.93,171.87,45.0]
[1717753439479,6.4558,171.94,171.86,6.1293]
[1717753439675,7.31,171.9,171.86,6.1293]
[1717753439854,7.31,171.88,171.84,12.337]
[1717753440054,7.31,171.88,171.84,6.517]
[1717753440055,9.4627,171.88,171.84,6.517]
[1717753440368,7.31,171.88,171.84,6.517]
[1717753440975,2.1524,171.9,171.84,6.517]
[1717753441194,7.31,171.89,171.83,13.802]
[1717753441763,9.4624,171.9,171.84,7.31]
[1717753442774,7.31,171.89,171.83,13.802]
[1717753443678,2.1524,171.9,171.83,13.802]
[1717753444079,7.31,171.89,171.83,13.802]
[1717753447591,2.1524,171.9,171.83,13.802]
[1717753447904,7.31,171.89,171.83,13.802]
[1717753458383,2.1524,171.9,171.83,6.492]
[1717753458606,9.4625,171.89,171.83,6.492]
[1717753459104,7.31,171.89,171.83,6.492]
[1717753460004,9.4627,171.88,171.83,6.492]
[1717753460598,7.31,171.87,171.83,6.492]
[1717753463007,2.1527,171.88,171.83,6.492]
[1717753463175,7.31,171.87,171.83,6.492]
[1717753464305,2.1527,171.88,171.83,6.492]
[1717753464479,7.31,171.87,171.83,6.492]
[1717753470302,7.31,171.87,171.79,16.1267]
[1717753470303,9.4627,171.87,171.79,22.5425]
[1717753470518,9.4627,171.87,171.81,7.31]
[1717753470686,7.31,171.87,171.81,7.31]
[1717753478331,9.4627,171.88,171.81,7.31]
[1717753478832,2.1526,171.89,171.81,7.31]
[1717753479128,9.4626,171.88,171.81,7.31]
[1717753482013,2.1526,171.88,171.8,45.0]
[1717753482222,9.4626,171.88,171.8,45.0]
[1717753482426,2.1526,171.88,171.81,7.31]
[1717753482808,9.4626,171.88,171.81,7.31]
[1717753483340,2.1526,171.88,171.81,7.31]
[1717753483840,9.4626,171.88,171.81,7.31]
[1717753484516,2.1526,171.88,171.81,7.31]
[1717753484836,9.4626,171.88,171.81,7.31]
[1717753486443,2.1526,171.88,171.8,45.0]
[1717753486619,2.1526,171.88,171.82,7.31]
[1717753494651,2.1528,171.87,171.82,7.31]
[1717753494819,2.1527,171.87,171.82,7.31]
[1717753500434,11.6151,171.89,171.82,7.31]
[1717753500435,2.1527,171.88,171.82,7.31]
[1717753502755,2.1528,171.87,171.82,7.31]
[1717753504257,2.1528,171.87,171.79,22.5425]
[1717753504456,2.1528,171.87,171.79,6.4158]
[1717753504756,2.1528,171.87,171.81,7.31]
[1717753505637,2.1527,171.88,171.81,7.31]
[1717753505861,9.4627,171.88,171.81,7.31]
[1717753512458,9.4627,171.88,171.79,6.4158]
[1717753512967,9.4627,171.88,171.8,7.31]
[1717753513143,7.31,171.87,171.8,7.31]
[1717753513344,7.31,171.87,171.81,7.31]
[1717753514475,9.4627,171.88,171.81,7.31]
[1717753514762,9.4627,171.88,171.79,6.4158]
[1717753515267,7.31,171.87,171.81,7.31]
[1717753515775,7.31,171.87,171.79,6.4158]
[1717753515938,7.31,171.87,171.81,7.31]
[1717753516139,7.31,171.86,171.75,62.47986471]
[1717753516340,7.31,171.86,171.79,7.31]
[1717753516863,7.31,171.86,171.76,45.0]
[1717753517047,7.31,171.86,171.77,20.0]
[1717753517243,7.31,171.85,171.78,45.0]
[1717753517455,7.31,171.85,171.76,45.0]
[1717753517654,7.31,171.85,171.78,7.31]
[1717753519462,7.31,171.84,171.78,7.31]
[1717753520086,7.31,171.84,171.75,7.1843019]
[1717753520250,7.31,171.84,171.78,7.31]